Cogmind - Beta 16.1 @@@ ROGUE MODE // 2026.02.24 @ 14:54:56 Player: Kranker Result: Destroyed by Y-45 Defender with Beam Rifle Performance ------------- Evolutions (1) 500 Regions Visited (3) 600 Robots Destroyed (16) 80 Value Destroyed (403) 403 Prototype IDs (0) 0 Alien Tech Used (0) 0 Bonus (108) 108 TOTAL SCORE: 1691 Bonus ------- Follower Combat Kills 108 Cogmind --------- Core Integrity 0/400 Matter 429/500 Energy 100/100 System Corruption 0% Temperature Cool (9) Movement Core (1400) Ox27 Location -9/Materials Parts ------- > --- POWER (1) -------- (None) > --- PROPULSION (2) --- (None) > --- UTILITY (4) ------ Huge Storage Unit High-capacity Matter Pod Machine Analyzer > --- WEAPON (2) ------- (None) > --- INVENTORY (25) --- Seismic Detector Peak State ------------ > --- POWER ------------ Light Ion Engine > --- PROPULSION ------- Flight Unit > --- UTILITY ---------- Scrap Suit > --- WEAPON ----------- Assault Rifle Rocket Launcher > --- INVENTORY -------- Huge Storage Unit High-capacity Matter Pod Seismic Detector Small Laser [Rating: 13] Favorites ----------- Power Light Ion Engine Engine Light Ion Engine Power Core Light Nuclear Core Propulsion Flight Unit Wheel Wheel Flight Unit Flight Unit Utility Huge Storage Unit Device Scrap Suit Storage Huge Storage Unit Processor Machine Analyzer Protection Light Armor Plating Weapon Assault Rifle Energy Gun Small Laser Ballistic Gun Assault Rifle Ballistic Cannon Light Cannon Launcher Rocket Launcher Build | -11 -10 -10 -9 ------- Run | Yrd Mat Min Mat Slots Evolved 2 | . . . 2 Power . | . . . . Propulsion . | . . . . Utility 2 | . . . 2 Weapon . | . . . . Parts Attached 30 | 7 6 8 9 Power 5 | 1 1 1 2 Engine 3 | 1 1 . 1 Core 2 | . . 1 1 Reactor . | . . . . Propulsion 6 | 2 . 1 3 Treads . | . . . . Leg . | . . . . Wheel 3 | 2 . . 1 Hover . | . . . . Flight 3 | . . 1 2 Utility 10 | 2 3 2 3 Device 4 | 2 1 1 . Storage 3 | . 2 . 1 Processor 1 | . . . 1 Hackware . | . . . . Protection 2 | . . 1 1 Artifact . | . . . . Weapon 9 | 2 2 4 1 Energy Gun 4 | . . 3 1 Energy Cannon . | . . . . Ballistic Gun 3 | 2 1 . . Ballistic Cannon 1 | . 1 . . Launcher 1 | . . 1 . Special Weapon . | . . . . Impact Weapon . | . . . . Slashing Weapon . | . . . . Piercing Weapon . | . . . . Special Melee Weapon . | . . . . Unidentified Prototypes . | . . . . Parts Lost 21 | . 6 2 13 Power 5 | . 1 2 2 Propulsion 5 | . 1 . 4 Utility 4 | . 1 . 3 Weapon 7 | . 3 . 4 Highest Loss Streak 11 | . 4 1 11 To Critical Strikes . | . . . . Average Backups 3 | 2 3 3 4 Power . | . . . . Propulsion . | 1 1 . . Utility 1 | . 1 1 1 Weapon . | 1 . . 1 Tool/Special . | . . . . Unused Backups 2 | . 2 . . Power . | . . . . Propulsion 2 | . 2 . . Utility . | . . . . Weapon . | . . . . Tool/Special . | . . . . Average Slot Usage (%) 82 | . 71 84 77 Engine 7 | . 10 8 4 Wheel 7 | . 14 7 3 Flight 10 | . . 13 4 Device 1 | . 5 1 . Storage 20 | . 12 20 22 Protection 6 | . . 4 19 Energy Gun 11 | . . 12 13 Ballistic Gun 8 | . 26 8 . Launcher 5 | . . 6 3 Peak Build Rating 13 | 7 9 13 12 Average Rating 7 | 3 5 7 10 On Entrance 4 | . 7 5 7 Avg Prop Armor Cover (%) 6 | . . 6 . Naked Turns . | . . . . Heaviest Build 100 | 9 89 95 100 Greatest Support 20 | 20 20 10 10 Greatest Overweight (x) 33 | . 28 23 33 Average Overweight (x) 9 | . 4 11 12 Largest Inventory Capacity 25 | 5 25 25 25 Average Capacity 22 | 5 22 22 25 Most Carried 7 | 5 5 6 7 Average Carried 3 | 3 3 3 4 Final Capacity 25 | 5 25 25 25 Final Carried 6 | 5 1 6 1 Scrap Suit Usage (%) 8 | . . 10 . Parts Cannibalized 1 | . . 1 . Class Distribution -------------------- 81% | Mutant 10% | Scavenger-Mutant 8% | Scrapper Dominant Class ---------------- Mutant | -10/Materials Mutant | -10/Mines Scavenger-Mutant | -9/Materials Resources | -11 -10 -10 -9 ----------- Run | Yrd Mat Min Mat Matter Collected 890 | 262 129 384 115 Remotely . | . . . . Salvage Created 384 | 64 112 47 161 Parts 37 | 10 9 2 16 Haulers Intercepted . | . . . . Recyclers Shooed 1 | . . . 1 Parts Field Recycled . | . . . . Retrieved Matter . | . . . . Parts Self-Destructed . | . . . . Prevented . | . . . . Parts Restored . | . . . . Kills | -11 -10 -10 -9 ------- Run | Yrd Mat Min Mat Combat Hostiles Destroyed 12 | 1 3 2 6 Guns 9 | 1 3 1 4 AOE 3 | . . 1 2 Classes Destroyed 6 | 2 2 . 2 Builder 1 | . 1 . . Tunneler 1 | 1 . . . Mechanic 1 | . . . 1 Watcher 1 | . 1 . . Swarmer 3 | . . . 3 Grunt 9 | 1 3 2 3 Best Kill Streak 3 | 2 2 2 3 Combat Bots Only 3 | 1 2 2 3 Max Kills in Single Turn 2 | 1 1 1 2 Gunslinging 1 | . . . 1 Exploded 1 | . . 1 1 Melee . | . . . . Uniques/NPCs Destroyed . | . . . . Combat | -11 -10 -10 -9 -------- Run | Yrd Mat Min Mat Hostile Shots Fired 223 | 5 75 23 120 Missed 72 | 3 17 7 45 Hits 151 | 2 58 16 75 Projectile 151 | 2 58 16 75 Critical Strikes 5 | . 3 . 2 Damage Taken 2061 | 22 707 251 1081 Core 571 | . 130 39 402 Absorbed by Shields . | . . . . Redirected to Shielding 50 | . . . 50 Regen/Repaired (Parts) 83 | . . 10 73 Core Remaining (%) 66 | 100 . 32 . Volleys Fired 55 | 2 27 7 19 Largest 2 | 2 2 2 2 Hottest 110 | 40 50 89 110 Shots Fired 97 | 4 51 10 32 Gun 76 | 4 35 7 30 Cannon 16 | . 16 . . Launcher 5 | . . 3 2 Special . | . . . . Kinetic 60 | 4 51 4 1 Thermal 21 | . . 3 18 Explosive 5 | . . 3 2 Electromagnetic 11 | . . . 11 Robot Hit Streak 11 | 3 11 8 5 Robot Miss Streak 3 | 1 3 1 2 Penetration Max . | . . . . Secondary Targets 1 | . . . 1 Max Gunslinging Chain 1 | . . . 1 Shots Hit Robots 61 | 3 36 7 15 Core Hits 27 | 3 11 5 8 Critical Kills . | . . . . Critical Parts Destroyed 1 | . 1 . . Critical Strikes 1 | . 1 . . Destroy 1 | . 1 . . Melee Attacks . | . . . . Impact . | . . . . Slashing . | . . . . Piercing . | . . . . Sneak Attacks . | . . . . Combat Hostiles . | . . . . Follow-up Attacks . | . . . . Damage Inflicted 1177 | 51 508 186 432 Guns 675 | 51 337 67 220 Cannons 171 | . 171 . . Explosions 291 | . . 81 210 Melee . | . . . . Ramming 40 | . . 38 2 Kinetic 607 | 51 508 38 10 Thermal 163 | . . 29 134 Explosive 291 | . . 81 210 Electromagnetic 76 | . . . 76 Impact . | . . . . Slashing . | . . . . Piercing . | . . . . Highest Corruption . | . . . . Average Corruption . | . . . . Corruption Purged . | . . . . Corruption Blocked . | . . . . Overload Shots . | . . . . Overflow Damage 3 | . . . 3 Projectiles . | . . . . Explosions 3 | . . . 3 Melee . | . . . . Knockbacks 9 | . 8 1 . Impact 1 | . . 1 . Kinetic 7 | . 7 . . Secondary 1 | . 1 . . Self-Inflicted Damage 60 | . . 18 42 Shots 2 | . . . 2 Rammed 5 | . . 4 1 Targets Rammed 5 | . . 4 1 Kicked . | . . . . Crushed . | . . . . Highest Temperature 97 | . 41 97 78 Average Temperature 26 | . 17 49 26 Received Heat Transfer 972 | 12 447 105 408 Siege Activations . | . . . . Martial Activations . | . . . . Shielding Activations . | . . . . Robots Disrupted . | . . . . Combat Hostiles . | . . . . Robots Corrupted . | . . . . Combat Hostiles . | . . . . Parts Fried . | . . . . Impact Corruptions . | . . . . Robots Melted . | . . . . Combat Hostiles . | . . . . Parts Melted . | . . . . Heat Transferred 407 | . . 74 333 Parts Sabotaged . | . . . . Parts Stolen . | . . . . Parts Stripped . | . . . . Power Chain Reactions . | . . . . Alert | -11 -10 -10 -9 ------- Run | Yrd Mat Min Mat Maximum Alert Level . | . . . . Low Security (%) 100 | 100 100 100 100 Level 1 . | . . . . Level 2 . | . . . . Level 3 . | . . . . Level 4 . | . . . . Level 5 . | . . . . High Security . | . . . . Max Security . | . . . . Peak Influence 130 | 25 50 130 64 Initial 21 | . 9 . 21 Average 18 | 5 8 21 7 Influence Increases 579 | 25 122 274 158 Destroy 0b10 Robot/C 400 | 20 60 200 120 Destroy 0b10 Robot/NC 20 | 5 10 . 5 Destroy Leader 62 | . 22 30 10 Allied During Kill 24 | . . 24 . Successful Hack 13 | . . 5 8 Destroy Structure 30 | . . 15 15 Lose Combat Pursuer 30 | . 30 . . Influence Decreases 579 | 10 137 219 213 Entered New Map 40 | . 6 . 34 Time Decay 415 | 10 91 155 159 Lost Part 80 | . 40 20 20 Lost Ally 44 | . . 44 . Squads Dispatched 2 | . 1 . 1 Investigation 1 | . 1 . . Extermination . | . . . . Reinforcement 1 | . . . 1 Assault . | . . . . Garrison . | . . . . Intercept . | . . . . Searches Triggered . | . . . . Construction Impeded . | . . . . Haulers Reinforced . | . . . . Active Scanning Responses . | . . . . Cargo Convoy Interrupts . | . . . . Stealth | -11 -10 -10 -9 --------- Run | Yrd Mat Min Mat Distress Signals 3 | . 1 . 2 Communications Jammed . | . . . . Distress Signals . | . . . . Times Spotted 43 | 1 9 10 23 Peak Tracking Total 6 | 1 5 6 4 Tactical Retreats 1 | . 1 . . Traps | -11 -10 -10 -9 ------- Run | Yrd Mat Min Mat Traps Triggered 1 | . 1 . . Indirectly . | . . . . Trap Hack Attempts . | . . . . Triggered . | . . . . Disarmed . | . . . . Reprogrammed . | . . . . Reused . | . . . . Traps Extracted . | . . . . Installed . | . . . . Triggered . | . . . . Machines | -11 -10 -10 -9 ---------- Run | Yrd Mat Min Mat Machines Disabled 1 | . . 1 . Max in Single Turn 1 | . . 1 . Machines Repaired . | . . . . Machines Dismantled . | . . . . Machines Sabotaged . | . . . . Overloaded Fab Kills . | . . . . Hacking | -11 -10 -10 -9 --------- Run | Yrd Mat Min Mat Machines Accessed 4 | . . 1 3 Terminals 3 | . . 1 2 Fabricators . | . . . . Repair Stations 1 | . . . 1 Recycling Units . | . . . . Scanalyzers . | . . . . Garrison Access . | . . . . Total Hacks 13 | . . 6 7 Successful 8 | . . 3 5 Failed 5 | . . 3 2 Catastrophic . | . . . . Database Lockouts . | . . . . Manual 1 | . . 1 . Terminals 9 | . . 6 3 Fabricators . | . . . . Repair Stations 4 | . . . 4 Recycling Units . | . . . . Scanalyzers . | . . . . Garrison Access . | . . . . Terminal Hacks 5 | . . 3 2 Record 1 | . . . 1 Dispatch Records 1 | . . 1 . Investigation Status 1 | . . 1 . Zone Layout 2 | . . 1 1 Fabricator Hacks . | . . . . Repair Station Hacks 3 | . . . 3 Scan Component 2 | . . . 2 Repair 1 | . . . 1 Recycling Unit Hacks . | . . . . Scanalyzer . | . . . . Garrison Access Hacks . | . . . . Unauthorized Hacks . | . . . . Terminals . | . . . . Fabricators . | . . . . Repair Stations . | . . . . Recycling Units . | . . . . Scanalyzers . | . . . . Garrison Access . | . . . . Data Cores Recovered . | . . . . Used . | . . . . Hacking Detections 3 | . . 1 2 Full Trace Events 1 | . . 1 . Feedback Events . | . . . . Feedback Blocked . | . . . . Robot Schematics Acquired . | . . . . Robots Built . | . . . . Authchips . | . . . . Time . | . . . . Total Robot Build Rating . | . . . . Part Schematics Acquired . | . . . . Parts Built . | . . . . Authchips . | . . . . Time . | . . . . Total Part Build Rating . | . . . . Part Studies Acquired . | . . . . Parts Repaired 1 | . . . 1 Time 32 | . . . 32 Parts Recycled . | . . . . Recycled Matter . | . . . . Retrieved Matter . | . . . . Retrieved Components . | . . . . Parts Scanalyzed . | . . . . Part Schematics Acquired . | . . . . Parts Damaged . | . . . . Bothacking | -11 -10 -10 -9 ------------ Run | Yrd Mat Min Mat Used RIF Installer . | . . . . Robots Hacked . | . . . . Non-combat . | . . . . Combat . | . . . . Robot Hacks Applied . | . . . . Relay Couplers Released . | . . . . Fabnet Peak Effective % . | . . . . Robots Rewired . | . . . . Allies Hacked . | . . . . Hacks Repelled . | . . . . Allies | -11 -10 -10 -9 -------- Run | Yrd Mat Min Mat Total Allies 3 | . . 3 . Largest Group 3 | . . 3 . Highest-Rated Group 40 | . . 40 . Highest-Rated Ally 16 | . . 16 . Total Orders . | . . . . Ally Attacks 33 | . . 33 . Total Damage 359 | . . 359 . Kills 8 | . . 8 . Allies Corrupted . | . . . . Allies Melted . | . . . . Intel | -11 -10 -10 -9 ------- Run | Yrd Mat Min Mat Active Infowar (turns) 237 | 5 130 2 100 Terrain 130 | . 130 . . Seismic 7 | 5 . 2 . Machine Analysis 100 | . . . 100 Robot Analysis Total . | . . . . Derelict Logs Recovered 2 | . . 2 . Drone Launches . | . . . . Drone Recoveries . | . . . . Exploration | -11 -10 -10 -9 ------------- Run | Yrd Mat Min Mat Turns Passed 8968 | 83 608 6929 1348 Spaces Moved 1338 | 83 217 798 240 Core 68 | 23 20 . 25 Treads . | . . . . Legs . | . . . . Wheels 614 | 60 197 169 188 Hover . | . . . . Flight 656 | . . 629 27 Fastest Speed 50 | 50 80 200 215 Average Speed 649 | 71 236 856 533 Slowest Speed 1960 | 80 1450 1880 1960 Overloaded Moves . | . . . . Propulsion Burnouts . | . . . . Robots Hopped . | . . . . Potential Cave-ins . | . . . . Cave-ins Triggered . | . . . . Exploration Rate (%) 39 | 6 29 99 22 Regions Visited 3 Branch Regions 1 Pre-discovered Areas 1 | . . 1 . Known Exits Taken . | . . . . Unknown Exits Taken 3 | 1 1 1 . Scrap Searched 1 | . . 1 . Spaces Dug . | . . . . Terrain Destroyed 40 | . . 18 22 Melee . | . . . . Projectile . | . . . . AOE 40 | . . 18 22 Terrain Rammed . | . . . . Walls Destroyed . | . . . . Machines Disabled . | . . . . Actions | -11 -10 -10 -9 --------- Run | Yrd Mat Min Mat Total 1527 | 101 262 880 284 Wait 44 | . . 44 . Move 1335 | 82 216 797 240 Hop . | . . . . Pick Up 30 | 10 3 10 7 Fast Attach 2 | 2 . . . Attach 35 | 5 8 8 14 Detach 9 | . 3 4 2 Swap 6 | . 2 3 1 Drop 6 | . 3 3 . Fire 55 | 2 27 7 19 Melee . | . . . . Ram 5 | . . 4 1 Kick . | . . . . Crush . | . . . . Escape Stasis . | . . . . Rewire . | . . . . Trap . | . . . . Miscellaneous . | . . . . Route ------- -11/Scrapyard -10/Materials (discovered 2 exits: *Mat / *Min) -10/Mines (discovered 3 exits: *Mat x2 / [*Sub]) -9/Materials (discovered 1 exit: [*Min]) History --------- Turn | Location | Event 2 | -11/Scrapyard | Met Revision 17 50 | -11/Scrapyard | Discovered new exit (range 8) 84 | -11/Scrapyard | Entered Materials 140 | -10/Materials | Discovered new exit (range 12) 249 | -10/Materials | Lost 4 parts (1p1u2w) 296 | -10/Materials | Discovered new exit (range 16) 316 | -10/Materials | Build established: Mutant 672 | -10/Materials | Core integrity fell below 50% 684 | -10/Materials | Derelicts attacked the area 692 | -10/Materials | Entered Mines 856 | -10/Mines | Learned Materials emergency access door positions 886 | -10/Mines | Assisted by bots powering up and referring to "LRC-V3" 1384 | -10/Mines | Discovered new exit (range 14) 1691 | -10/Mines | Discovered new exit (range 10) 4128 | -10/Mines | Found a Scrap Suit stashed away for nefarious purposes 4164 | -10/Mines | Found Scrap Suit 4251 | -10/Mines | Learned location of Zion (-7) 4409 | -10/Mines | Found a damaged Exp. Sensor Array with a note attached 4466 | -10/Mines | Received a Rocket Launcher from a helpful Derelict 4474 | -10/Mines | Build established: Scrapper 4729 | -10/Mines | Discovered new exit (range 5) 5202 | -10/Mines | Build established: Mutant 7621 | -10/Mines | Entered Materials 7621 | -9/Materials | Evolved 2 slots: Utility x2 7929 | -9/Materials | Build established: Scavenger-Mutant 8489 | -9/Materials | Repaired Particle Gun? 8744 | -9/Materials | Discovered new exit (range 16) 8874 | -9/Materials | Core integrity fell below 50% 8940 | -9/Materials | Lost 11 parts (2p3n3u3w) 8940 | -9/Materials | Core integrity fell below 20% 8969 | -9/Materials | Destroyed by Y-45 Defender with Beam Rifle Last Messages --------------- 08918_ K-01 Serf collects debris. 08920_ R-06 Scavenger collects Wheel. 08923_ K-01 Serf collects debris. 08934_ A-02 Transporter destroyed. 08934_ K-01 Serf collects debris. 08936_ R-06 Scavenger collects Lgt. Treads. 08937_ K-01 Serf collects debris. 08940_ R-06 Scavenger collects Lgt. Treads. 08941_ K-01 Serf collects debris. 08964_ Connecting with Terminal... >>Query(Recycling Unit) Deconstruction apparatus for breaking down old components delivered by Recycler class robots. Condensed matter is contained within the unit until it reaches a certain quota, at which point it is transferred to the nearest [DSF]. 08965_ K-01 Serf collects debris. 08967_ R-06 Scavenger collects Prototype Flight Unit. 08968_ K-01 Serf collects debris. Map ----- +----------------------------------------------------+ | ?????????????????????????????????????????????????? | | ?????????????????????????????????????????????????? | | ?????????????????????????????????????????????????? | | ?????????????????????????????????????????????????? | | ?????????????????????????????????????????????????? | | ?????????????????????????????????????????????????? | | ?????????????????????????????????????????????????? | | ?????????????????????????????????????????????????? | | ?????????????????????????????????????????????????? | | ?????????????????????????????????????????????????? | | ?????????????????????????????????????????????????? | | ?????????????????????????????????????????????????? | | ?????????????????????????????????????""??????????? | | ?????????????????????????????????????T"??????????? | | ?????????????????????????????????????""??????????? | | ?????????????????????????????????????????????????? | | ?????????????????????????????????????????????????? | | ????????????????????????????????????##???????????? | | ?????????????????????????????????? ????????????? | | ????????????????????????????????? ?????????????? | | #????????????????# ???????? ???????????????? | | #????????????????# ?????? #????????????????? | | #######???############?? w ##???????????????? | | # # ##### ##T## #???????????????? | | ###### ! Y #???????????????? | | ?????# " <= r @ #???????????????? | | ?????# a% #???????????????? | | ?????# ##### !== ##### #???????????????? | | ?????## ##???# ! k #?????#####???????????????? | | ??????# #????#"""""""#?????????????????????????? | | ####### #????#########?????????????????????????? | | ## #??????????????????????????????????????? | | ## ##?????????????????????????????????????? | | """ # #?????????????????????????????????????? | | """ # #?????????????????????????????????????? | | """ + T #?????????????????????????????????????? | | # #?????????????????????????????????????? | | # #?????????????????????????????????????? | | ## ##?????????????????????????????????????? | | ####### #??????????????????????????????????????? | | ## #??????????????????????????????????????? | | #??????????????????????????????????????? | | #??????????????????????????????????????? | | ###+#####???????????"""??"??????????????????? | | # #???????????"""??"??????????????????? | | + #???????????"""??"??????????????????? | | # #????????????????T??????????????????? | | #########???????????"""??"??????????????????? | | ###+#####????????????????"""??"??????????????????? | | #????????????????"""??"??????????????????? | +----------------------------------------------------+ Best States ------------- Heat Dissipation 35 Energy Generation 14 Energy Capacity 250 Matter Stores 466 Matter Capacity 600 Sight Range 16 Terrain Scan Range 16 Terrain Scan Density 10 Armor Coverage 150 Weapon Shielding 33 Evasion (%) 50 Item Schematics ----------------- None Robot Schematics ------------------ None Fabricated ------------ Nothing Repaired ---------- Particle Gun | 2% | -9/Materials Studied --------- None Alien Tech Used ----------------- None Achievements -------------- Bumper Bots Challenges ------------ None Game ------ Seed SigixDisposableSpoofer Manual? 0 Play Time 00:31:34 Cumulative 7.3 hours Start 2026.02.13 @ 14:08:34 End 2026.02.24 @ 14:54:56 Sessions 3 Manual Loads 0 Difficulty Rogue Special Mode None Game No. 20 Rogue 20 Adventurer 0 Explorer 0 Win Type - Total 0 Types 0/0/0/0/0/0/0/0/0/0 Lore% 1 Gallery% 8 Achievement% 6 Wizard Run 0 Options --------- Layout 1 ASCII 0 Keyboard 0 Movement Mouse Keybinds 0 Fullscreen 1 Font 24/Smallcaps Map View 50x35 Zoom Use 0% Tactical HUD 1 Map Filters NONE Filters NONE Steam 1 RUN: 48b80ea1-3564-42ca-b3b0-b98c94087941